bitfinex-derivatives/quotes_SOLF0:USTF0_20241008
["timestamp","ask_amount","ask_price","bid_price","bid_amount"]
[1728357065231,100.70604808,144.89,144.83,4.27312]
[1728357065630,10.61,144.87,144.83,4.27312]
[1728357065829,14.062,144.87,144.83,7.72582]
[1728357067629,3.4521,144.86,144.83,7.72582]
[1728357067941,3.4521,144.86,144.83,4.27312]
[1728357069840,10.61,144.87,144.83,4.27312]
[1728357070140,3.4524,144.85,144.83,4.27312]
[1728357074246,3.4524,144.85,144.83,0.12502]
[1728357081152,5.14,144.86,144.83,0.12502]
[1728357081960,8.5921,144.86,144.83,0.12502]
[1728357082250,5.14,144.86,144.83,0.12502]
[1728357083046,3.4523,144.85,144.83,0.12502]
[1728357084456,2.6079,144.92,144.83,10.73502]
[1728357084650,15.75,144.91,144.85,10.61]
[1728357085048,3.4515,144.89,144.86,3.4519]
[1728357085450,5.14,144.91,144.86,10.61]
[1728357085646,15.75,144.91,144.86,10.61]
[1728357086150,5.14,144.91,144.86,3.4519]
[1728357086345,5.14,144.91,144.71,0.12502]
[1728357086346,10.61,144.87,144.77,0.12502]
[1728357086646,3.4532,144.82,144.77,0.12502]
[1728357086848,5.14,144.81,144.77,0.12502]
[1728357087446,8.5935,144.81,144.77,0.12502]
[1728357087643,5.14,144.81,144.77,0.12502]
[1728357089458,3.4536,144.8,144.77,0.12502]
[1728357091754,8.5936,144.8,144.77,0.12502]
[1728357093463,8.5936,144.8,144.77,3.57922]
[1728357093656,5.14,144.8,144.77,0.12502]
[1728357094252,3.4537,144.79,144.77,0.12502]
[1728357094457,5.14,144.8,144.77,0.12502]
[1728357094657,15.75,144.8,144.77,0.12502]
[1728357095154,3.4537,144.79,144.77,0.12502]
[1728357096260,3.454,144.78,144.77,0.12502]
[1728357096654,8.594,144.78,144.77,0.12502]
[1728357102560,3.454,144.78,144.77,0.12502]
[1728357102761,8.594,144.78,144.77,0.12502]
[1728357103357,19.204,144.78,144.77,0.12502]
[1728357110058,15.75,144.78,144.71,0.12502]
[1728357110264,3.4548,144.75,144.72,3.4553]
[1728357111663,3.4548,144.75,144.72,14.0653]
[1728357111867,3.4544,144.77,144.74,3.4549]
[1728357112066,5.14,144.77,144.73,10.61]
[1728357112466,5.14,144.77,144.74,3.4549]
[1728357112666,5.14,144.77,144.75,10.61]
[1728357113073,3.4536,144.8,144.76,10.61]
[1728357113272,5.14,144.8,144.76,10.61]
[1728357113572,5.14,144.82,144.77,10.61]
[1728357113774,8.5932,144.82,144.77,10.61]
[1728357114076,8.5932,144.82,144.79,3.4536]
[1728357114566,5.14,144.82,144.79,3.4536]
[1728357115673,5.26502,144.83,144.81,3.4532]
[1728357116077,5.26502,144.83,144.79,10.61]
[1728357116763,5.26502,144.83,144.79,3.4536]
[1728357118268,8.5931,144.82,144.79,3.4536]
[1728357124582,8.5931,144.82,144.79,14.0636]
[1728357124775,8.5931,144.82,144.8,3.4535]
[1728357129389,8.5931,144.82,144.79,14.0636]
[1728357133488,8.5931,144.82,144.79,10.61]
[1728357133686,0.12502,144.83,144.81,10.61]
[1728357133887,0.12502,144.89,144.81,15.75]
[1728357134191,5.14,144.97,144.88,10.61]
[1728357134386,3.50812295,144.96,144.91,10.61]
[1728357134591,15.75,144.97,144.91,14.0608]
[1728357134783,3.57502,144.95,144.91,14.0608]
[1728357135088,10.61,144.94,144.87,8.5918]
[1728357135288,3.4507,144.92,144.87,19.2018]
[1728357136489,15.75,144.94,144.87,14.0618]
[1728357136794,10.61,144.92,144.86,14.0621]
[1728357137090,3.4515,144.89,144.86,10.61]
[1728357138292,10.61,144.91,144.85,10.61]
[1728357138893,10.61,144.89,144.85,10.61]
[1728357139397,3.4516,144.88,144.85,10.61]
[1728357141294,8.5912,144.9,144.86,10.61]
[1728357141897,5.14,144.9,144.87,3.4517]
[1728357142787,19.2013,144.9,144.86,14.062]
[1728357144794,8.5913,144.9,144.86,14.062]
[1728357145297,8.5913,144.9,144.87,3.4517]
[1728357146202,5.14,144.9,144.88,3.4515]
[1728357146405,3.4509,144.91,144.88,3.4515]
[1728357147699,3.4509,144.91,144.87,10.61]
[1728357147905,3.4512,144.9,144.87,14.0618]
[1728357149600,3.4521,144.86,144.83,3.57772]
[1728357149792,10.61,144.88,144.83,10.73502]
[1728357149999,5.14,144.9,144.84,10.61]
[1728357150192,8.5912,144.9,144.86,10.61]
[1728357151096,8.5912,144.9,144.87,3.4518]
[1728357151297,5.14,144.9,144.86,10.61]
[1728357151501,3.4515,144.89,144.86,10.61]
[1728357152497,5.14,144.9,144.86,10.61]
[1728357152498,3.4516,144.88,144.86,10.61]
[1728357152707,5.14,144.9,144.86,14.062]
[1728357153803,3.4515,144.89,144.86,14.062]
[1728357154490,3.4516,144.88,144.86,10.61]
[1728357157606,3.4515,144.89,144.86,14.062]
[1728357165008,3.4517,144.88,144.85,3.4522]
[1728357166220,3.4519,144.87,144.84,3.4524]
[1728357166419,3.4519,144.87,144.83,15.87502]
[1728357166821,3.4519,144.87,144.84,3.4525]
[1728357167927,3.4525,144.85,144.83,0.12502]
[1728357169021,3.4525,144.85,144.83,3.57782]
[1728357177932,3.4526,144.84,144.83,0.12502]
[1728357178435,5.14,144.87,144.83,10.73502]
[1728357178934,3.4522,144.86,144.84,3.4524]
[1728357179122,5.14,144.87,144.83,10.73502]
[1728357180130,3.4525,144.85,144.83,10.73502]
[1728357183933,3.4525,144.85,144.83,14.18782]
[1728357185442,5.14,144.87,144.83,10.73502]
[1728357185626,8.5919,144.87,144.84,14.0624]
[1728357185934,3.4519,144.87,144.84,14.0624]
[1728357187435,3.4519,144.87,144.84,10.61]
[1728357187635,3.4517,144.88,144.85,3.4523]
[1728357189939,3.4517,144.88,144.84,10.61]
[1728357190130,3.4517,144.88,144.85,3.4522]
[1728357191839,3.4521,144.86,144.84,3.4525]
[1728357192045,10.61,144.87,144.83,2.77712]
[1728357192538,3.4519,144.87,144.84,3.4525]
[1728357193139,10.61,144.88,144.84,3.4525]
[1728357193439,3.4521,144.86,144.83,16.83982]
[1728357195143,10.61,144.88,144.83,0.12502]
[1728357195346,3.4524,144.85,144.83,0.12502]
[1728357196338,10.61,144.87,144.83,0.12502]
[1728357196538,10.61,144.87,144.83,3.57772]
[1728357196848,10.61,144.87,144.83,0.12502]
[1728357197042,3.4524,144.85,144.83,0.12502]
[1728357201552,10.61,144.87,144.83,0.12502]
[1728357201752,3.4526,144.84,144.83,0.12502]
[1728357209151,3.4524,144.85,144.83,10.73502]
[1728357211552,3.4524,144.85,144.83,14.18782]
[1728357215251,3.4524,144.85,144.83,0.12502]
[1728357215562,3.454,144.78,144.77,0.12502]
[1728357215852,8.594,144.78,144.77,0.12502]
[1728357217654,19.204,144.78,144.77,1e-08]
[1728357222157,14.064,144.78,144.77,1e-08]
[1728357222359,19.204,144.78,144.77,1e-08]
[1728357223455,22.6504772,144.78,144.77,1e-08]
[1728357224562,3.454,144.78,144.77,1e-08]
[1728357224748,19.184,144.78,144.77,1e-08]
[1728357227155,3.454,144.78,144.77,1e-08]
[1728357227352,8.594,144.78,144.77,1e-08]
[1728357228053,3.454,144.78,144.77,1e-08]
[1728357228260,8.594,144.78,144.77,1e-08]
[1728357233165,3.454,144.78,144.77,1e-08]
[1728357233372,8.594,144.78,144.77,1e-08]
[1728357233875,5.14,144.78,144.77,1e-08]
[1728357235164,8.594,144.78,144.77,1e-08]
[1728357237074,95.73830385,144.83,144.77,10.61000001]
[1728357237268,8.5932,144.82,144.79,3.4536]
[1728357237467,5.14,144.82,144.77,10.61000001]
[1728357237777,10.61,144.81,144.77,1e-08]
[1728357239275,3.4539,144.79,144.77,1e-08]
[1728357241680,3.4539,144.79,144.77,3.45420001]
[1728357245386,3.4532,144.82,144.79,3.4536]
[1728357245587,8.5932,144.82,144.79,3.4536]
[1728357246082,8.5932,144.82,144.8,3.4535]
[1728357246479,8.5932,144.82,144.78,13.2753]
[1728357246981,8.5932,144.82,144.79,3.4537]
[1728357247388,3.4532,144.82,144.79,3.4537]
[1728357247582,3.4532,144.82,144.8,3.4535]
[1728357248185,0.12501999,144.83,144.8,10.61]
[1728357248678,3.4532,144.82,144.79,14.0637]
[1728357248877,0.12501999,144.83,144.79,14.0637]
[1728357249877,3.4532,144.82,144.79,14.0637]
[1728357250488,3.4533,144.81,144.79,10.61]
[1728357251688,3.4531,144.82,144.79,14.0635]
[1728357255488,3.4531,144.82,144.79,3.4535]
[1728357257887,0.12501999,144.83,144.79,3.4535]
[1728357258089,3.4533,144.81,144.78,15.4078]
[1728357259801,3.4533,144.81,144.79,3.4537]
[1728357261097,0.12501999,144.83,144.79,3.4537]
[1728357261314,3.57791999,144.83,144.81,3.4533]
[1728357261493,0.12501999,144.83,144.81,3.4533]
[1728357261894,3.57781999,144.83,144.81,3.4533]
[1728357262096,0.12501999,144.83,144.8,10.61]
[1728357262406,0.12501999,144.83,144.81,3.4533]
[1728357263414,3.57791999,144.83,144.81,3.4533]
[1728357270405,3.57791999,144.83,144.8,10.61]
[1728357270610,3.57791999,144.83,144.8,14.0634]
[1728357271106,3.4531,144.82,144.78,11.9539]
[1728357271304,3.4531,144.82,144.79,3.4536]
[1728357273413,3.4531,144.82,144.67,3.50863812]
[1728357273414,15.73,144.81,144.74,3.4549]
[1728357273598,10.61,144.8,144.74,3.4549]
[1728357274101,3.4544,144.77,144.74,3.4549]
[1728357274498,3.4541,144.78,144.75,3.4547]
[1728357277798,3.4545,144.76,144.74,10.61]
[1728357278305,5.12,144.78,144.74,10.61]
[1728357278612,3.4545,144.76,144.74,10.61]
[1728357280508,3.4545,144.76,144.73,3.455]
[1728357280709,3.4545,144.76,144.74,10.61]
[1728357286312,3.4543,144.77,144.74,14.0649]
[1728357292824,8.5741,144.78,144.74,10.61]
[1728357293028,5.12,144.78,144.74,10.61]
[1728357293730,5.12,144.78,144.75,3.4546]
[1728357294326,8.5742,144.78,144.75,3.4546]
[1728357296633,3.4542,144.78,144.76,3.4544]
[1728357300958,15.73,144.79,144.71,9.38422]
[1728357301251,3.4543,144.77,144.74,14.0649]
[1728357301758,3.4541,144.78,144.75,3.4546]
[1728357302054,5.12,144.79,144.75,10.61]
[1728357302554,8.5739,144.79,144.76,3.4543]
[1728357304257,8.5739,144.79,144.77,3.4542]
[1728357305155,8.5739,144.79,144.75,10.61]
[1728357305350,3.4541,144.78,144.76,3.4544]
[1728357308355,5.12,144.79,144.71,9.38422]
[1728357308552,3.4545,144.76,144.72,11.83177815]
[1728357308860,10.61,144.78,144.72,14.0652]
[1728357309050,10.61,144.78,144.72,10.61]
[1728357309560,3.4544,144.77,144.73,3.455]
[1728357309756,10.61,144.78,144.73,3.455]
[1728357310262,3.4546,144.76,144.73,3.455]
[1728357310862,5.12,144.79,144.74,3.4548]
[1728357310863,3.4544,144.77,144.74,3.4548]
[1728357316351,5.12,144.79,144.74,3.4548]
[1728357316556,3.4545,144.76,144.74,3.4548]
[1728357317263,5.12,144.79,144.74,3.4548]
[1728357317455,3.4543,144.77,144.74,3.4548]
[1728357320065,5.12,144.79,144.73,10.61]
[1728357320260,3.4547,144.76,144.73,14.0651]
[1728357320571,10.61,144.77,144.71,4.26422]
[1728357321068,3.4549,144.74,144.71,4.26422]
[1728357321258,5.12,144.76,144.71,4.26422]
[1728357322357,3.4548,144.75,144.71,4.26422]
[1728357322556,3.4548,144.75,144.72,3.4553]
[1728357330969,5.04528247,144.83,144.73,10.61]
[1728357331272,10.61,144.81,144.74,10.61]
[1728357331464,3.4539,144.79,144.76,3.4543]
[1728357331972,5.04528247,144.83,144.74,10.61]
[1728357332179,3.4537,144.8,144.77,3.4541]
[1728357332564,3.4538,144.79,144.77,3.4541]
[1728357332962,3.4538,144.79,144.76,14.0644]
[1728357334270,10.61,144.81,144.76,14.0644]
[1728357335378,3.454,144.78,144.76,14.0644]
[1728357335771,3.454,144.78,144.76,3.4544]
[1728357346980,5.04528247,144.83,144.74,10.61]
[1728357347186,5.12,144.82,144.77,10.61]
[1728357347392,5.24502,144.83,144.77,10.61]
[1728357347686,3.4531,144.82,144.79,3.4536]
[1728357347887,10.61,144.82,144.76,10.61]
[1728357348185,3.4537,144.8,144.77,3.4541]
[1728357348483,10.61,144.82,144.77,3.4541]
[1728357348785,3.4537,144.8,144.77,3.4541]
[1728357349685,3.4532,144.82,144.78,10.61]
[1728357350486,3.4532,144.82,144.79,3.4536]
[1728357351690,0.12502,144.83,144.81,3.4532]
[1728357351987,0.12502,144.83,144.82,10.61]
[1728357353078,95.57515652,144.88,144.82,10.61]
[1728357353280,95.57515652,144.88,144.84,10.61]
[1728357353474,95.57515652,144.88,144.82,10.61]
[1728357353677,10.61,144.87,144.81,10.61]
[1728357353892,10.61,144.84,144.78,7.8241]
[1728357354088,10.61,144.84,144.78,18.4341]
[1728357354286,3.453,144.83,144.8,3.4534]
[1728357354787,10.61,144.84,144.79,10.61]
[1728357354992,14.0626,144.84,144.81,3.4532]
[1728357355183,10.61,144.84,144.79,10.61]
[1728357355786,3.4525,144.85,144.81,14.0631]
[1728357356189,3.4525,144.85,144.81,10.61]
[1728357356492,3.4525,144.85,144.82,3.453]
[1728357360690,5.12,144.86,144.81,10.61]
[1728357360890,3.4523,144.85,144.82,3.4529]
[1728357362693,8.5722,144.86,144.83,3.4527]
[1728357363694,3.4523,144.85,144.83,3.4527]
[1728357366196,5.12,144.86,144.84,3.4524]
[1728357367891,10.73502,144.89,144.85,10.61]
[1728357367892,0.12502,144.89,144.85,10.61]
[1728357368083,337.0,144.99,144.88,10.61]
[1728357368393,10.61,144.96,144.89,10.61]
[1728357368590,3.57502,144.95,144.91,3.4507]
[1728357369394,3.4502,144.94,144.91,3.4507]
[1728357370600,0.12502,144.95,144.91,10.61]
[1728357370896,0.12502,144.95,144.93,10.61]
[1728357372392,0.12502,144.95,144.93,14.0604]
[1728357374000,3.4504,144.94,144.9,3.4511]
[1728357374203,10.61,144.94,144.88,6.5175]
[1728357374393,10.61,144.94,144.89,10.61]
[1728357374598,3.4508,144.92,144.89,10.61]
[1728357374893,0.12502,144.95,144.9,10.61]
[1728357376400,3.4505,144.93,144.9,14.061]
[1728357376599,0.12502,144.95,144.9,10.61]
[1728357377197,3.57502,144.95,144.92,14.0606]
[1728357377499,0.12502,144.95,144.92,10.61]
[1728357377894,3.57502,144.95,144.92,14.0606]
[1728357378902,3.4502,144.94,144.92,10.61]
[1728357381197,0.12502,144.95,144.92,10.61]
[1728357381394,3.57502,144.95,144.93,3.4504]
[1728357381987,0.12502,144.95,144.93,3.4504]
[1728357382801,3.57512,144.95,144.92,14.0606]
[1728357388301,3.4505,144.93,144.91,3.4508]
[1728357388503,3.4505,144.93,144.92,10.61]
[1728357391912,0.12502,144.95,144.91,10.61]
[1728357392208,3.4506,144.92,144.91,10.61]
[1728357398409,10.73502,144.95,144.9,10.61]
[1728357398608,10.61,144.94,144.88,10.61]
[1728357398908,5.1,144.93,144.88,10.61]
[1728357399110,3.4513,144.9,144.88,10.61]
[1728357408007,3.4513,144.9,144.83,0.12502]
[1728357408309,3.4517,144.88,144.85,10.61]
[1728357409406,3.4517,144.88,144.86,3.452]
[1728357410008,5.1,144.9,144.86,3.452]
[1728357410213,3.4515,144.89,144.86,3.452]
[1728357411517,5.1,144.9,144.86,10.61]
[1728357411708,8.5513,144.9,144.87,3.4517]
[1728357412505,8.5513,144.9,144.86,10.61]
[1728357412717,8.5513,144.9,144.88,3.4516]
[1728357414714,8.5513,144.9,144.87,3.4517]
[1728357417411,5.1,144.9,144.88,10.61]
[1728357417611,3.4507,144.92,144.89,3.4514]
[1728357417813,5.1,144.93,144.89,3.4514]
[1728357418209,3.4508,144.92,144.89,3.4514]
[1728357418809,3.4509,144.91,144.89,3.4514]
[1728357419918,3.4509,144.91,144.88,10.61]
[1728357420126,3.4509,144.91,144.88,14.0615]
[1728357422722,3.4513,144.9,144.87,3.4518]
[1728357424020,10.61,144.9,144.83,0.12502]
[1728357424317,15.71,144.9,144.84,10.61]
[1728357424521,10.61,144.89,144.83,0.12502]
[1728357425024,3.452,144.87,144.84,3.4525]
[1728357425923,3.4521,144.86,144.84,3.4525]
[1728357426427,3.4521,144.86,144.83,14.18772]
[1728357427334,3.4526,144.84,144.83,0.12502]
[1728357435932,8.5526,144.84,144.83,0.12502]
[1728357437437,19.1626,144.84,144.83,0.12502]
[1728357437728,19.15438134,144.84,144.77,14.69772]
[1728357438235,3.4535,144.8,144.77,18.15182]
[1728357439135,3.4535,144.8,144.77,16.81992]
[1728357439324,3.4538,144.79,144.77,14.18912]
[1728357441023,3.454,144.78,144.77,0.12502]
[1728357453338,3.4538,144.79,144.77,3.57922]
[1728357453538,3.4538,144.79,144.77,0.12502]
[1728357454145,3.454,144.78,144.77,0.12502]
[1728357463047,3.4549,144.75,144.57,25.37100902]
[1728357463349,10.61,144.7,144.66,1.22409046]
[1728357463547,10.8963,144.69,144.66,1.22409046]
[1728357463851,95.70867596,144.75,144.59,2.83352]
[1728357464038,10.61,144.69,144.64,10.61]
[1728357464239,10.61,144.68,144.59,2.83352]
[1728357464441,10.85079321,144.69,144.62,10.61]
[1728357464746,18.05,144.69,144.62,10.61]
[1728357464940,7.44,144.69,144.59,6.29646813]
[1728357465149,7.44,144.69,144.61,10.61]
[1728357465446,7.44,144.69,144.62,10.61]
[1728357465646,10.61,144.68,144.62,10.61]
[1728357465846,7.44,144.69,144.62,10.61]
[1728357465847,3.4566,144.67,144.62,10.61]
[1728357466347,3.4566,144.67,144.61,10.61]
[1728357466747,14.0666,144.67,144.61,10.61]
[1728357466947,3.4566,144.67,144.61,10.61]
[1728357468445,10.61,144.68,144.61,10.61]
[1728357468446,3.4568,144.66,144.61,10.61]
[1728357469541,18.05,144.69,144.63,10.61]
[1728357470642,10.61,144.67,144.59,2.83352]
[1728357470847,10.61,144.67,144.61,10.61]
[1728357471041,3.4568,144.66,144.61,14.068]
[1728357473552,3.4568,144.66,144.59,2.83352]
[1728357473853,3.4568,144.66,144.63,10.61]
[1728357474751,3.4568,144.66,144.61,14.068]
[1728357475544,3.4568,144.66,144.55,3.58448]
[1728357475545,3.4576,144.63,144.55,3.58448]
[1728357475746,0.12502,144.65,144.55,3.58448]
[1728357475747,18.05,144.62,144.55,14.84298]
[1728357475947,18.05,144.62,144.57,10.61]
[1728357476148,3.4583,144.61,144.56,3.4591]
[1728357476355,18.05,144.62,144.56,10.61]
[1728357476746,3.4587,144.59,144.56,10.61]
[1728357476947,18.05,144.62,144.56,10.61]
[1728357477148,18.05,144.62,144.55,0.12518]
[1728357477349,3.4592,144.57,144.55,0.12518]
[1728357477654,7.44,144.57,144.55,0.12518]
[1728357478248,3.4592,144.56,144.55,0.12518]
[1728357478451,14.0692,144.56,144.55,0.12518]
[1728357478649,3.4592,144.56,144.55,0.12518]
[1728357479446,14.0692,144.56,144.55,0.12518]
[1728357479653,3.4592,144.56,144.55,0.12518]
[1728357479965,7.44,144.56,144.55,0.12518]
[1728357480851,7.44,144.57,144.55,0.12518]
[1728357481348,3.4592,144.56,144.55,0.12518]
[1728357481955,10.8991,144.57,144.55,0.12518]
[1728357482257,10.8991,144.57,144.56,3.4592]
[1728357482258,7.06,144.57,144.56,3.4592]
[1728357482454,10.61,144.6,144.56,3.4592]
[1728357482759,7.06,144.59,144.55,0.12518]
[1728357482954,3.4588,144.58,144.55,0.12518]
[1728357484454,7.06,144.59,144.55,0.12518]
[1728357485156,7.06,144.59,144.56,3.4591]
[1728357485360,14.0685,144.6,144.55,0.12518]
[1728357485361,7.06,144.6,144.57,10.61]
[1728357485549,10.61,144.64,144.58,10.61]
[1728357485855,10.61,144.64,144.55,1.47928]
[1728357485856,7.06,144.63,144.59,10.61]
[1728357486064,7.06,144.63,144.55,4.97800477]
[1728357486065,7.06,144.63,144.61,10.61]
[1728357486558,7.06,144.63,144.61,14.0679]
[1728357488365,7.06,144.63,144.61,3.4579]
[1728357490661,0.12502,144.65,144.63,3.4574]
[1728357490867,0.12502,144.65,144.64,10.61]
[1728357491267,0.12502,144.65,144.64,3.4573]
[1728357492161,10.61,144.69,144.64,3.4573]
[1728357492162,7.06,144.7,144.64,10.61]
[1728357492357,17.67,144.7,144.64,10.61]
[1728357492559,3.4564,144.68,144.64,10.61]
[1728357492757,17.67,144.7,144.64,10.61]
[1728357492964,17.67,144.7,144.66,3.4568]
[1728357493172,3.4563,144.69,144.66,3.4568]
[1728357493476,7.06,144.7,144.66,10.61]
[1728357493766,7.06,144.7,144.67,10.61]
[1728357494561,0.12502,144.71,144.68,3.4563]
[1728357494765,0.12502,144.71,144.68,10.61]
[1728357495374,0.12502,144.71,144.69,3.456]
[1728357496262,0.12502,144.77,144.68,10.61]
[1728357496468,0.12502,144.77,144.71,10.61]
[1728357497371,0.12502,144.77,144.73,10.61]
[1728357497573,3.57942,144.77,144.74,3.4549]
[1728357498072,0.12502,144.77,144.73,10.61]
[1728357498377,0.12502,144.77,144.74,10.61]
[1728357498571,0.12502,144.77,144.71,16.58]
[1728357499367,0.12502,144.77,144.75,3.4547]
[1728357499777,0.12502,144.77,144.71,16.58]
[1728357500275,0.12502,144.77,144.74,3.4548]
[1728357501663,0.12502,144.77,144.72,3.4553]
[1728357502168,3.4546,144.76,144.72,3.4553]
[1728357502368,3.4546,144.76,144.71,16.58]
[1728357502569,3.4546,144.76,144.73,3.4551]
[1728357503471,3.4547,144.75,144.72,3.4554]
[1728357505170,3.4547,144.75,144.71,3.4555]
[1728357505370,3.4547,144.75,144.7,1.3065]
[1728357505967,3.4547,144.75,144.72,3.4553]
[1728357507172,10.25932,144.77,144.74,3.4549]
[1728357508175,0.12502,144.77,144.71,16.58]
[1728357508372,0.12502,144.77,144.75,3.4546]
[1728357509178,3.57922,144.77,144.75,3.4546]
[1728357509475,3.57922,144.77,144.74,3.4548]
[1728357510884,0.12502,144.77,144.72,6.68]
[1728357511271,0.12502,144.77,144.73,16.58]
[1728357511577,0.12502,144.77,144.76,3.4545]
[1728357511983,6.80502,144.83,144.75,16.58]
[1728357512169,6.80502,144.83,144.76,2.77]
[1728357512981,16.58,144.81,144.76,2.77]
[1728357513171,16.58,144.81,144.73,6.68]
[1728357513367,3.4541,144.78,144.75,3.4546]
[1728357513882,3.4537,144.8,144.77,3.454]
[1728357514081,0.12502,144.83,144.75,16.58]
[1728357514280,6.80502,144.83,144.75,16.58]
[1728357515082,16.70502,144.83,144.74,1.4182]
[1728357515680,3.4537,144.79,144.76,3.4543]
[1728357518184,16.70502,144.83,144.75,3.4546]
[1728357518484,16.70502,144.83,144.74,1.4182]
[1728357518984,3.4539,144.79,144.76,3.4543]
[1728357520179,16.70502,144.83,144.74,1.4182]
[1728357520386,3.4534,144.81,144.78,3.4539]
[1728357521684,0.12502,144.83,144.82,3.453]
[1728357521983,0.12502,144.83,144.81,10.61]
[1728357522188,0.12502,144.83,144.78,10.61]
[1728357522486,0.12502,144.83,144.76,23.25]
[1728357522783,3.4532,144.82,144.79,3.4536]
[1728357523586,3.57792,144.83,144.8,3.4535]
[1728357524187,3.4531,144.82,144.8,3.4535]
[1728357528193,3.57792,144.83,144.8,3.4534]
[1728357529184,0.12502,144.83,144.8,3.4534]
[1728357529384,3.453,144.82,144.8,3.4534]
[1728357530189,0.12502,144.83,144.75,22.87]
[1728357530892,3.4534,144.81,144.78,3.4539]
[1728357532188,3.4536,144.8,144.77,3.4541]
[1728357534684,3.4536,144.8,144.75,16.57]
[1728357534888,3.4536,144.8,144.78,3.454]
[1728357535084,0.12502,144.83,144.74,1.4182]
[1728357535387,16.57,144.82,144.73,3.455]
[1728357535694,6.3,144.81,144.72,19.3161]
[1728357536191,3.38971885,144.8,144.72,19.3161]
[1728357536393,3.38971885,144.8,144.72,2.7461]
[1728357537597,6.3,144.81,144.74,3.4549]
[1728357537800,6.3,144.81,144.72,2.7461]
[1728357537988,3.4539,144.79,144.73,3.455]
[1728357538193,3.46132676,144.79,144.73,3.455]
[1728357538490,6.3,144.81,144.73,3.455]
[1728357538695,3.4544,144.77,144.73,3.455]
[1728357540897,3.454,144.78,144.75,3.4546]
[1728357541500,3.4539,144.79,144.76,3.4544]
[1728357543401,3.454,144.78,144.76,3.4544]
[1728357544494,6.3,144.81,144.77,10.61]
[1728357545304,9.7534,144.81,144.78,3.4539]
[1728357545998,9.7534,144.81,144.78,10.61]
[1728357546199,3.4531,144.82,144.78,10.61]
[1728357547304,3.4533,144.81,144.79,3.4537]
[1728357548110,3.4532,144.82,144.79,3.4537]
[1728357549201,3.4535,144.81,144.78,3.454]
[1728357549506,10.61,144.81,144.75,10.61]
[1728357550009,3.4536,144.8,144.77,3.454]
[1728357552109,3.4536,144.8,144.76,10.61]
[1728357552299,3.4536,144.8,144.77,3.4542]
[1728357553913,3.4538,144.79,144.77,3.4542]
[1728357554411,3.4538,144.79,144.76,14.0644]
[1728357556011,3.4544,144.77,144.75,10.61]
[1728357556218,3.4544,144.77,144.74,14.0649]
[1728357556715,10.61,144.78,144.71,0.12502]
[1728357556916,3.4545,144.76,144.73,3.4551]
[1728357557509,3.4545,144.76,144.72,10.61]
[1728357557721,3.4545,144.76,144.71,0.12502]
[1728357557722,3.4541,144.78,144.74,10.61]
[1728357557920,3.4541,144.78,144.76,3.4544]
[1728357558220,5.92,144.8,144.76,14.0644]